fUSD/lending_fUSD_20240217
["ID","MTS","AMOUNT","RATE_DAILY","PERIOD"]
[314262269,1708128643082,-299.152805,0.00040738,2]
[314262270,1708128643090,-150.0,0.00040739,2]
[314262271,1708128643099,-150.0,0.0004074,2]
[314262272,1708128643108,-150.0,0.00040742,2]
[314262273,1708128643118,-151.021799,0.00040748,40]
[314262275,1708128643128,-150.0,0.00040751,2]
[314262277,1708128643139,-150.0,0.00040759,2]
[314262279,1708128643148,-150.0,0.00040766,2]
[314262281,1708128643157,-150.0,0.00040772,2]
[314262283,1708128643166,-150.0,0.00040774,2]
[314262285,1708128643175,-150.0,0.00040775,2]
[314262288,1708128643184,-150.0,0.00040787,2]
[314262291,1708128643193,-150.0,0.00040794,2]
[314262294,1708128643203,-150.0,0.00040799,2]
[314262296,1708128643212,-1500.0,0.00040803,2]
[314262298,1708128643221,-150.0,0.00040803,2]
[314262300,1708128643230,-150.0,0.00040807,2]
[314262302,1708128643239,-248.16852788,0.00040809,3]
[314262304,1708128643248,-207.21148723,0.00040809,3]
[314262306,1708128643258,-10979.88723697,0.0004081,2]
[314262308,1708128643267,-158.04578453,0.0004081,2]
[314262310,1708128643276,-203.0476169,0.0004081,2]
[314262312,1708128643286,-1147.82957012,0.0004081,2]
[314262314,1708128643294,-154.999999,0.0004081,2]
[314262316,1708128643303,-5295.31076023,0.0004081,4]
[314262318,1708128643312,-1584.07438171,0.0004081,2]
[314262320,1708128643321,-155.92647831,0.0004081,2]
[314262322,1708128643330,-4545.82505603,0.0004081,2]
[314262324,1708128643339,-702.01654297,0.0004081,2]
[314262326,1708128643348,-155.0,0.0004081,2]
[314262328,1708128643357,-53482.41611465,0.0004081,30]
[314262330,1708128643366,-500.0,0.0004081,120]
[314262332,1708128643376,-150.0,0.00040811,2]
[314262334,1708128643386,-150.0,0.00040824,2]
[314262336,1708128643395,-150.0,0.00040824,2]
[314262338,1708128643404,-150.0,0.00040839,2]
[314262340,1708128643413,-158.0,0.0004084,7]
[314262343,1708128643423,-150.0,0.00040841,2]
[314262344,1708128643432,-197.0,0.00040842,7]
[314262346,1708128643441,-150.0,0.00040845,2]
[314262348,1708128643450,-300.0,0.00040848,2]
[314262350,1708128643459,-150.0,0.00040851,2]
[314262352,1708128643468,-150.0,0.00040853,2]
[314262354,1708128643477,-1500.0,0.00040855,2]
[314262356,1708128643486,-150.0,0.0004086,2]
[314262358,1708128643495,-300.0,0.00040861,2]
[314262361,1708128643506,-1500.0,0.00040873,2]
[314262363,1708128643515,-150.0,0.00040876,2]
[314262365,1708128643525,-1500.0,0.00040886,2]
[314262367,1708128643534,-2028.5163297,0.00040892,2]
[314262369,1708128643542,-232.2975291,0.00040892,2]
[314262371,1708128643553,-48060.8775762,0.00040892,2]
[314262372,1708128643562,-3242.4502223,0.00040892,2]
[314262375,1708128643573,-150.01,0.00040896,2]
[314262377,1708128643584,-3316.80182207,0.00040896,2]
[314262378,1708128643593,-4858.85406519,0.00040897,15]
[314262380,1708128643602,-880.21252016,0.00040899,4]
[314262383,1708128643612,-150594.79543479,0.000409,30]
[314262385,1708128643621,-2000.0,0.000409,7]
[314262387,1708128643630,-200.0,0.000409,7]
[314262389,1708128643639,-200.0,0.000409,7]
[314262391,1708128643648,-151.0,0.000409,7]
[314262393,1708128643661,-150.0,0.000409,2]
[314262395,1708128643671,-1000.0,0.000409,7]
[314262397,1708128643680,-361.43,0.000409,2]
[314262399,1708128643689,-151.0,0.000409,2]
[314262401,1708128643698,-790.58,0.00040963,2]
[314262403,1708128643707,-1874.2263,0.0004097,7]
[314262405,1708128643716,-227.1993649,0.00041,30]
[314262407,1708128643725,-166.0,0.00041,2]
[314262409,1708128643736,-262.0,0.00041,5]
[314262410,1708128643745,-800.0,0.00041,2]
[314262412,1708128643754,-155.0,0.0004101,2]
[314262414,1708128643763,-238.29,0.0004105,2]
[314262416,1708128643772,-163.92,0.00041084,2]
[314262418,1708128643781,-750.0,0.00041095,2]
[314262420,1708128643791,-1250.0,0.000411,2]
[314262422,1708128643800,-1501.0,0.000411,2]
[314262424,1708128643809,-151.021799,0.00041148,40]
[314262426,1708128643818,-238.29,0.00041255,2]
[314262428,1708128643827,-2000.0,0.00041309,7]
[314262430,1708128643836,-200.0,0.00041309,7]
[314262432,1708128643845,-158.0,0.00041388,7]
[314262434,1708128643854,-151.021799,0.00041448,40]
[314262436,1708128643863,-238.29,0.0004146,2]
[314262438,1708128643873,-262.0,0.000415,6]
[314262439,1708128643884,-2276.52,0.00041514,2]
[314262440,1708128643893,-152.16,0.00041553,2]
[314262441,1708128643902,-200.0,0.00041563,2]
[314262442,1708128643911,-1000.0,0.000416,2]
[314262443,1708128643920,-153.97,0.000416,4]
[314262444,1708128643928,-153.97,0.000416,4]
[314262445,1708128643937,-153.97,0.000416,4]
[314262446,1708128643947,-153.97,0.000416,4]
[314262447,1708128643956,-205.0,0.0004162,16]
[314262448,1708128643965,-152.66873982,0.0004164,12]
[314262450,1708128643974,-238.29,0.00041665,2]
[314262452,1708128643983,-155.89,0.0004174,2]
[314262454,1708128643992,-151.021799,0.00041748,40]
[314262455,1708128644001,-174.84,0.00041781,2]
[314262458,1708128644010,-1000.0,0.000418,30]
[314262459,1708128644019,-238.29,0.00041871,2]
[314262461,1708128644028,-4858.85406519,0.00041897,16]
[314262462,1708128644038,-158.0,0.00041936,7]
[314262463,1708128644047,-666.0,0.00041999,2]
[314262464,1708128644056,-315.88127363,0.00042,2]
[314262465,1708128644069,-965.23195016,0.00042,7]
[314262466,1708128644081,-8718.37051597,0.00042,2]
[314262467,1708128644090,-989.30707222,0.00042,120]
[314262468,1708128644098,-83842.7597691,0.00042,4]
[314262469,1708128644107,-7461.29506656,0.00042,2]
[314262470,1708128644118,-262.0,0.00042,7]
[314262471,1708128644127,-1000.0,0.00042,2]
[314262472,1708128644137,-447.41497558,0.00042,4]
[314262473,1708128644146,-188.518083,0.00042,7]
[314262474,1708128644155,-150.1,0.00042,2]
[314262475,1708128644164,-200.0,0.00042,2]
[314262476,1708128644174,-1297.01661112,0.0004201,2]
[314262477,1708128644183,-238.29,0.00042076,2]
[314262478,1708128644192,-598.97,0.00042092,15]
[314262479,1708128644202,-151.021799,0.00042148,40]
[314262480,1708128644211,-523.51,0.00042205,2]
[314262481,1708128644221,-1000.0,0.00042222,4]
[314262482,1708128644230,-238.29,0.00042281,2]
[314262483,1708128644239,-192.97,0.00042312,2]
[314262484,1708128644248,-152.0,0.00042339,3]
[314262485,1708128644257,-156.62,0.00042433,2]
[314262486,1708128644266,-171.021799,0.00042448,40]
[314262487,1708128644275,-750.0,0.00042465,3]
[314262488,1708128644284,-158.0,0.00042484,7]
[314262489,1708128644293,-158.07691297,0.00042485,30]
[314262490,1708128644302,-238.29,0.00042486,2]
[314262491,1708128644311,-262.0,0.000425,8]
[314262492,1708128644321,-897.0,0.000425,30]
[314262493,1708128644330,-347.0,0.000425,30]
[314262494,1708128644339,-921.9,0.000425,30]
[314262495,1708128644349,-1342.15601815,0.00042633,5]
[314262496,1708128644359,-158.07691297,0.00042637,30]
[314262497,1708128644368,-170.0,0.00042679,2]
[314262498,1708128644379,-238.29,0.00042692,2]
[314262499,1708128644390,-181.744,0.00042728,2]
[314262500,1708128644400,-205.907,0.00042728,2]
[314262501,1708128644409,-250.0,0.00042728,2]
[314262502,1708128644419,-165.797,0.00042728,2]
[314262503,1708128644428,-165.146,0.00042728,2]
[314262504,1708128644437,-150.0,0.00042728,2]
[314262505,1708128644446,-2835.0,0.00042728,2]
[314262506,1708128644456,-1368.0,0.00042728,2]
[314262507,1708128644465,-1865.0,0.00042728,2]
[314262508,1708128644474,-708.0,0.00042728,2]
[314262509,1708128644482,-453.0,0.00042728,2]
[314262510,1708128644491,-539.57,0.00042728,2]
[314262511,1708128644500,-842.0,0.00042728,2]
[314262512,1708128644509,-953.0,0.00042728,2]
[314262513,1708128644518,-599.0,0.00042728,2]
[314262514,1708128644527,-1949.0,0.00042728,2]
[314262515,1708128644536,-1231.0,0.00042728,2]
[314262516,1708128644545,-234.625,0.00042728,2]
[314262517,1708128644555,-1254.0,0.00042728,2]
[314262518,1708128644564,-442.661,0.00042728,2]
[314262519,1708128644573,-1014.812,0.00042728,2]
[314262520,1708128644582,-964.147,0.00042728,2]
[314262521,1708128644591,-243.647,0.00042728,2]
[314262522,1708128644600,-150.0,0.00042728,2]
[314262523,1708128644609,-1138.0,0.00042728,2]
[314262524,1708128644618,-2871.0,0.00042728,2]
[314262525,1708128644627,-431.489,0.00042728,2]
[314262526,1708128644637,-416.335,0.00042728,2]
[314262527,1708128644646,-153.746,0.00042728,2]
[314262528,1708128644659,-397.0,0.00042728,2]
[314262529,1708128644668,-19846.0,0.00042728,2]
[314262530,1708128644677,-2289.0,0.00042728,2]
[314262531,1708128644686,-7417.0,0.00042728,2]
[314262532,1708128644696,-8164.0,0.00042728,2]
[314262533,1708128644705,-4208.0,0.00042728,2]
[314262534,1708128644714,-2927.0,0.00042728,2]
[314262535,1708128644723,-38071.381,0.00042728,2]
[314262536,1708128644734,-1071.799,0.00042728,2]
[314262537,1708128644743,-264085.5415174,0.00042819,5]
[314262538,1708128644752,-166.08,0.00042854,2]
[314262539,1708128644762,-3142.20222836,0.00042888,32]
[314262540,1708128644771,-238.29,0.00042897,2]
[314262541,1708128644781,-729.76779221,0.00042897,10]
[314262542,1708128644790,-4858.85406519,0.00042898,17]
[314262543,1708128644799,-160.87124184,0.00042898,7]
[314262544,1708128644809,-160.87124184,0.00042898,7]
[314262545,1708128644818,-160.87124184,0.00042898,7]
[314262546,1708128644827,-160.87124184,0.00042898,7]
[314262547,1708128644837,-160.87,0.00042898,7]
[314262548,1708128644846,-164.21605357,0.00042898,7]
[314262549,1708128644855,-164.21,0.00042898,7]
[314262550,1708128644864,-172.92960343,0.00042898,7]
[314262551,1708128644875,-172.92960343,0.00042898,7]
[314262552,1708128644887,-172.92,0.00042898,7]
[314262553,1708128644896,-199.70076979,0.00042898,7]
[314262554,1708128644905,-199.70076979,0.00042898,7]
[314262555,1708128644915,-199.7,0.00042898,7]
[314262556,1708128644925,-195.38677755,0.00042898,7]
[314262557,1708128644934,-195.38677755,0.00042898,7]
[314262558,1708128644943,-195.38,0.00042898,7]
[314262559,1708128644952,-738.93327802,0.000429,36]
[314262560,1708128644961,-8342.42670999,0.00042916,5]
[314262561,1708128644972,-6333.83610394,0.00042916,5]
[314262562,1708128644981,-248.16852788,0.00042997,4]
[314262563,1708128644990,-207.21148723,0.00042997,4]
[314262564,1708128644999,-330633.14328738,0.00042998,3]
[314262565,1708128645009,-262.0,0.00043,9]
[314262566,1708128645018,-158.0,0.00043032,7]
[314262567,1708128645027,-155.89,0.00043033,2]
[314262568,1708128645036,-790.58,0.00043227,2]
[314262569,1708128645045,-1643.28966977,0.00043264,2]
[314262570,1708128645055,-2622.93524259,0.00043264,2]
[314262571,1708128645064,-1412.29034784,0.00043264,2]
[314262572,1708128645074,-1000.0,0.000433,2]
[314262573,1708128645083,-13588.26307109,0.000434,2]
[314262574,1708128645092,-151.021799,0.00043448,41]
[314262575,1708128645102,-262.0,0.000435,10]
[314262576,1708128645111,-311.99292575,0.000435,120]
[314262577,1708128645120,-152.66873982,0.0004356,20]
[314262578,1708128645129,-158.0,0.00043579,7]
[314262579,1708128645139,-523.51,0.00043677,2]
[314262580,1708128645148,-158.07691297,0.00043747,30]
[314262581,1708128645157,-5008.08,0.000438,2]
[314262582,1708128645166,-500.0,0.00043835,3]
[314262583,1708128645176,-4858.85406519,0.00043898,18]
[314262584,1708128645185,-153.97,0.000439,4]
[314262585,1708128645195,-153.97,0.000439,4]
[314262586,1708128645204,-153.97,0.000439,4]
[314262587,1708128645213,-153.97,0.000439,4]
[314262588,1708128645222,-248.16852788,0.00043997,4]
[314262589,1708128645232,-207.21148723,0.00043997,4]
[314262590,1708128645241,-20000.96078919,0.00044,120]
[314262591,1708128645250,-262.0,0.00044,11]
[314262592,1708128645259,-623.58548265,0.00044,4]
[314262593,1708128645269,-250.0,0.00044,30]
[314262594,1708128645278,-155.0,0.00044,90]
[314262595,1708128645287,-158.07691297,0.00044081,30]
[314262596,1708128645297,-22678.74155717,0.00044091,2]
[314262597,1708128645306,-200.0,0.000441,2]
[314262598,1708128645315,-800.0,0.00044108,2]
[314262599,1708128645324,-158.0,0.00044127,7]
[314262600,1708128645334,-1342.15601815,0.00044212,5]
[314262601,1708128645343,-155.89,0.00044326,2]
[314262602,1708128645353,-1000.0,0.000444,2]
[314262603,1708128645363,-156.62,0.0004443,2]
[314262604,1708128645373,-1000.0,0.00044444,4]
[314262605,1708128645382,-171.021799,0.00044448,41]
[314262606,1708128645393,-158.07691297,0.00044449,30]
[314262607,1708128645402,-158.0,0.00044675,7]
[314262608,1708128645412,-205.0,0.00044684,23]
[314262609,1708128645422,-152.16,0.00044749,2]
[314262610,1708128645431,-4858.85406519,0.00044899,20]
[314262611,1708128645440,-248.16852788,0.00044996,4]
[314262612,1708128645451,-207.21148723,0.00044996,4]
[314262613,1708128645461,-100000.0,0.00045,35]
[314262614,1708128645470,-570.03931848,0.00045,2]
[314262615,1708128645479,-155.0,0.00045,7]
[314262616,1708128645489,-28643.38675565,0.00045,10]
[314262617,1708128645499,-2044.20214715,0.00045,15]
[314262618,1708128645508,-301.97,0.00045068,2]
[314262619,1708128645517,-405.38,0.00045068,2]
[314262620,1708128645527,-405.38,0.00045068,2]
[314262621,1708128645536,-405.38,0.00045068,2]
[314262622,1708128645546,-405.38,0.00045068,2]
[314262623,1708128645556,-405.38,0.00045068,2]
[314262624,1708128645565,-8342.42670999,0.00045094,7]
[314262625,1708128645575,-6333.83610394,0.00045094,7]
[314262626,1708128645584,-523.51,0.00045149,2]
[314262627,1708128645594,-174.84,0.00045205,2]
[314262628,1708128645603,-171.0,0.00045223,30]
[314262629,1708128645613,-738.93327802,0.000454,39]
[314262630,1708128645622,-152.79146659,0.00045418,4]
[314262631,1708128645631,-448.86236647,0.00045418,8]
[314262632,1708128645641,-262.38715854,0.00045418,8]
[314262633,1708128645652,-200.14377175,0.00045418,8]
[314262634,1708128645664,-686.763315,0.00045418,8]
[314262635,1708128645674,-555.24516635,0.00045418,7]
[314262636,1708128645683,-309.95639648,0.00045418,7]
[314262637,1708128645693,-154.97819824,0.00045418,3]
[314262638,1708128645704,-165.03399359,0.00045418,4]
[314262639,1708128645714,-151.021799,0.00045448,44]
[314262640,1708128645724,-3873.21,0.00045457,120]
[314262641,1708128645734,-152.66873982,0.0004548,27]
[314262643,1708128645743,-195.935586,0.00045483,30]
[314262644,1708128645753,-790.58,0.00045491,2]
[314262645,1708128645763,-200.0,0.00045719,2]
[314262646,1708128645773,-150.0,0.00045728,2]
[314262647,1708128645782,-150.0,0.00045728,2]
[314262649,1708128645792,-150.0,0.00045728,2]
[314262650,1708128645801,-150.0,0.00045728,2]
[314262651,1708128645811,-2835.0,0.00045728,2]
[314262652,1708128645820,-592.912,0.00045728,2]
[314262654,1708128645829,-706.0,0.00045728,2]
[314262655,1708128645838,-842.0,0.00045728,2]
[314262657,1708128645848,-951.0,0.00045728,2]
[314262659,1708128645857,-1949.0,0.00045728,2]
[314262661,1708128645867,-1231.0,0.00045728,2]
[314262662,1708128645877,-216.0,0.00045728,2]
[314262663,1708128645887,-1254.0,0.00045728,2]
[314262664,1708128645896,-429.0,0.00045728,2]
[314262665,1708128645906,-1005.0,0.00045728,2]
[314262666,1708128645915,-858.0,0.00045728,2]
[314262667,1708128645924,-237.0,0.00045728,2]
[314262668,1708128645933,-222.345,0.00045728,2]
[314262669,1708128645943,-2871.0,0.00045728,2]
[314262670,1708128645953,-321.0,0.00045728,2]
[314262671,1708128645961,-343.0,0.00045728,2]
[314262672,1708128645971,-19846.0,0.00045728,2]
[314262673,1708128645980,-2289.0,0.00045728,2]
[314262674,1708128645989,-7417.0,0.00045728,2]
[314262675,1708128645999,-8164.0,0.00045728,2]
[314262676,1708128646009,-2927.0,0.00045728,2]
[314262677,1708128646019,-1037.0,0.00045728,2]
[314262678,1708128646028,-171.0,0.00045771,30]
[314262679,1708128646038,-1342.15601815,0.00045791,5]
[314262680,1708128646047,-598.97,0.00045828,15]
[314262681,1708128646057,-4858.85406519,0.00045899,21]
[314262682,1708128646066,-218.25258309,0.00045914,30]
[314262683,1708128646076,-5800.0,0.00045932,7]
[314262684,1708128646086,-5800.0,0.00045941,7]
[314262685,1708128646095,-5800.0,0.00045949,7]
[314262686,1708128646104,-5800.0,0.00045958,7]
[314262687,1708128646113,-5800.0,0.00045966,7]
[314262688,1708128646123,-5800.0,0.00045975,7]
[314262689,1708128646132,-5800.0,0.00045983,7]
[314262690,1708128646143,-5800.0,0.00045992,7]
[314262691,1708128646152,-549.44937568,0.00045994,7]
[314262692,1708128646162,-248.16852788,0.00045996,5]
[314262693,1708128646171,-207.21148723,0.00045996,5]
[314262694,1708128646181,-100000.0,0.00046,36]
[314262695,1708128646191,-5800.0,0.00046,7]
[314262696,1708128646201,-1000.0,0.00046,2]
[314262697,1708128646211,-195.935586,0.00046052,30]
[314262698,1708128646221,-166.08,0.00046121,2]
[314262699,1708128646230,-153.97,0.000462,5]
[314262700,1708128646240,-153.97,0.000462,5]
[314262701,1708128646250,-153.97,0.000462,5]
[314262702,1708128646260,-153.97,0.000462,5]
[314262703,1708128646270,-171.0,0.00046319,30]
[314262704,1708128646279,-156.62,0.00046427,2]
[314262705,1708128646289,-151.021799,0.00046448,44]
[314262706,1708128646299,-158.07691297,0.0004655,30]
[314262707,1708128646309,-1250.0,0.000466,2]
[314262708,1708128646319,-1500.0,0.000466,2]
[314262709,1708128646328,-195.935586,0.0004662,30]
[314262710,1708128646338,-1000.0,0.00046667,4]
[314262711,1708128646348,-1895.0,0.000467,115]
[314262712,1708128646357,-820.92,0.00046849,2]
[314262713,1708128646367,-412.02,0.00046849,2]
[314262714,1708128646376,-422.25,0.00046849,2]
[314262715,1708128646385,-150.0,0.00046849,2]
[314262716,1708128646395,-412.02,0.00046849,2]
[314262717,1708128646404,-824.04,0.00046849,2]
[314262718,1708128646414,-412.02,0.00046849,2]
[314262719,1708128646423,-304.7,0.00046849,2]
[314262720,1708128646434,-411.76,0.00046849,2]
[314262721,1708128646444,-171.0,0.00046867,30]
[314262722,1708128646454,-4858.85406519,0.00046899,22]
[314262723,1708128646464,-2048.4689494,0.00046968,2]
[314262724,1708128646473,-234.5824228,0.00046968,2]
[314262725,1708128646482,-48533.6075196,0.00046968,2]
[314262726,1708128646493,-248.16852788,0.00046995,6]
[314262727,1708128646503,-207.21148723,0.00046995,6]
[314262728,1708128646512,-100000.0,0.00047,37]
[314262729,1708128646522,-230.889233,0.00047,47]
[314262730,1708128646531,-152.0,0.00047035,4]
[314262731,1708128646541,-1000.0,0.000471,2]
[314262732,1708128646550,-195.935586,0.00047189,30]
[314262733,1708128646560,-3250.279076,0.00047239,2]
[314262734,1708128646570,-8342.42670999,0.00047272,9]
[314262735,1708128646579,-6333.83610394,0.00047272,9]
[314262736,1708128646588,-498.76,0.00047332,120]
[314262737,1708128646597,-1342.15601815,0.0004737,5]
[314262738,1708128646607,-152.66873982,0.000474,34]
[314262739,1708128646616,-171.0,0.00047415,30]
[314262740,1708128646626,-151.021799,0.00047448,44]
[314262741,1708128646635,-167.18,0.00047671,2]
[314262742,1708128646646,-835.87,0.00047671,2]
[314262743,1708128646660,-338.42,0.00047671,2]
[314262744,1708128646669,-312.47,0.00047671,2]
[314262745,1708128646679,-819.94,0.00047671,2]
[314262746,1708128646689,-300.0,0.00047671,2]
[314262747,1708128646698,-179.09,0.00047671,2]
[314262748,1708128646708,-150.0,0.00047671,2]
[314262749,1708128646718,-843.88,0.00047671,2]
[314262750,1708128646728,-150.0,0.00047671,2]
[314262751,1708128646738,-150.0,0.00047671,2]
[314262752,1708128646748,-418.88,0.00047671,2]
[314262753,1708128646757,-343.44,0.00047671,2]
[314262754,1708128646767,-343.44,0.00047671,2]
[314262755,1708128646776,-418.88,0.00047671,2]
[314262756,1708128646786,-150.0,0.00047671,2]
[314262757,1708128646795,-150.0,0.00047671,2]
[314262758,1708128646805,-150.0,0.00047671,2]
[314262759,1708128646815,-150.0,0.00047671,2]
[314262760,1708128646825,-418.88,0.00047671,2]
[314262761,1708128646834,-343.44,0.00047671,2]
[314262762,1708128646843,-412.02,0.00047671,2]
[314262763,1708128646854,-150.0,0.00047671,2]
[314262764,1708128647009,-418.88,0.00047671,2]
[314262765,1708128647018,-343.44,0.00047671,2]
[314262766,1708128647028,-412.02,0.00047671,2]
[314262767,1708128647038,-418.88,0.00047671,2]
[314262768,1708128647047,-150.0,0.00047671,2]
[314262769,1708128647056,-343.44,0.00047671,2]
[314262770,1708128647066,-205.0,0.00047747,31]
[314262771,1708128647075,-790.58,0.00047755,2]
[314262772,1708128647084,-195.935586,0.00047757,30]
[314262773,1708128647093,-4858.85406519,0.000479,23]
[314262774,1708128647102,-738.93327802,0.000479,43]
[314262775,1708128647112,-152.16,0.00047945,2]
[314262776,1708128647121,-171.0,0.00047963,30]
[314262777,1708128647130,-248.16852788,0.00047995,7]
[314262778,1708128647140,-207.21148723,0.00047995,7]
[314262779,1708128647149,-100000.0,0.00048,38]
[314262780,1708128647158,-12138.95752183,0.00048,30]
[314262781,1708128647167,-220.0,0.00048,48]
[314262782,1708128647177,-1000.0,0.00048,2]
[314262783,1708128647186,-258704.91984565,0.000484,120]
[314262784,1708128647195,-170.0,0.00048405,2]
[314262785,1708128647204,-156.62,0.00048424,2]
[314262786,1708128647213,-151.021799,0.00048448,44]
[314262787,1708128647223,-412.02,0.00048493,2]
[314262788,1708128647232,-412.02,0.00048493,2]
[314262789,1708128647242,-153.97,0.000485,6]
[314262790,1708128647252,-153.97,0.000485,6]
[314262791,1708128647261,-153.97,0.000485,6]
[314262792,1708128647271,-153.97,0.000485,6]
[314262793,1708128647281,-171.0,0.00048511,30]
[314262794,1708128647290,-800.0,0.00048519,2]
[314262795,1708128647299,-1643.28966977,0.00048628,2]
[314262796,1708128647308,-2622.93524259,0.00048628,2]
[314262797,1708128647317,-1412.29034784,0.00048628,2]
[314262798,1708128647327,-1000.0,0.0004868,30]
[314262799,1708128647336,-27256.89242009,0.000487,120]
[314262800,1708128647346,-150.0,0.00048728,2]
[314262801,1708128647355,-150.0,0.00048728,2]
[314262802,1708128647364,-150.0,0.00048728,2]
[314262803,1708128647374,-2827.0,0.00048728,2]
[314262804,1708128647383,-424.393,0.00048728,2]
[314262805,1708128647393,-1949.0,0.00048728,2]
[314262806,1708128647402,-1231.0,0.00048728,2]
[314262807,1708128647412,-1254.0,0.00048728,2]
[314262808,1708128647421,-429.0,0.00048728,2]
[314262809,1708128647431,-1005.0,0.00048728,2]
[314262810,1708128647440,-858.0,0.00048728,2]
[314262811,1708128647449,-237.0,0.00048728,2]
[314262812,1708128647459,-2871.0,0.00048728,2]
[314262813,1708128647468,-321.0,0.00048728,2]
[314262814,1708128647477,-343.0,0.00048728,2]
[314262815,1708128647486,-19797.0,0.00048728,2]
[314262816,1708128647495,-2284.0,0.00048728,2]
[314262817,1708128647505,-7397.0,0.00048728,2]
[314262818,1708128647514,-8143.0,0.00048728,2]
[314262819,1708128647524,-2919.0,0.00048728,2]
[314262820,1708128647533,-1037.0,0.00048728,2]
[314262821,1708128647544,-9171.2,0.000488,2]
[314262822,1708128647554,-500.0,0.000488,2]
[314262823,1708128647565,-1000.0,0.00048889,4]
[314262824,1708128647575,-7050.0,0.000489,60]
[314262825,1708128647584,-4858.85406519,0.000489,25]
[314262826,1708128647593,-13588.26307109,0.000489,2]
[314262827,1708128647603,-194.16846825,0.000489,10]
[314262828,1708128647612,-1342.15601815,0.00048949,5]
[314262829,1708128647621,-248.16852788,0.00048995,8]
[314262830,1708128647630,-207.21148723,0.00048995,8]
[314262831,1708128647639,-100000.0,0.00049,39]
[314262832,1708128647648,-512.9617,0.00049,30]
[314262833,1708128647662,-10000.0,0.00049,120]
[314262834,1708128647671,-10000.0,0.00049,120]
[314262835,1708128647680,-11805.68204836,0.00049,2]
[314262836,1708128647690,-200.0,0.00049,49]
[314262837,1708128647701,-146784.0,0.00049,2]
[314262838,1708128647710,-10000.0,0.00049,90]
[314262839,1708128647719,-171.0,0.00049059,30]
[314262840,1708128647729,-158.07691297,0.00049188,30]
[314262841,1708128647739,-46205.48,0.000493,60]
[314262842,1708128647749,-1004.11719576,0.00049315,2]
[314262843,1708128647758,-475.90111927,0.00049315,60]
[314262844,1708128647768,-1000.0,0.00049315,2]
[314262845,1708128647777,-500.0,0.00049315,60]
[314262846,1708128647786,-500.0,0.00049315,60]
[314262847,1708128647795,-500.0,0.00049315,60]
[314262848,1708128647804,-500.0,0.00049315,60]
[314262849,1708128647813,-500.0,0.00049315,60]
[314262850,1708128647822,-500.0,0.00049315,60]
[314262851,1708128647831,-500.0,0.00049315,60]
[314262852,1708128647840,-500.0,0.00049315,60]
[314262853,1708128647849,-500.0,0.00049315,60]
[314262854,1708128647861,-478.30163934,0.00049315,60]
[314262855,1708128647870,-500.0,0.00049315,2]
[314262856,1708128647880,-500.0,0.00049315,30]
[314262857,1708128647890,-500.0,0.00049315,2]
[314262858,1708128647900,-513.7465354,0.00049315,60]
[314262859,1708128647909,-500.0,0.00049315,60]
[314262860,1708128647918,-501.40107327,0.00049315,60]
[314262861,1708128647927,-500.0,0.00049315,60]
[314262862,1708128647937,-500.0,0.00049315,60]
[314262863,1708128647946,-500.0,0.00049315,60]
[314262864,1708128647955,-525.28226727,0.00049315,60]